fUSD/lending_fUSD_20240804
["ID","MTS","AMOUNT","RATE_DAILY","PERIOD"]
[334158438,1722802247902,-748.91596176,0.0002268,2]
[334158440,1722802247913,-1500.0,0.00022718,2]
[334158442,1722802247924,-1500.0,0.00022752,2]
[334158444,1722802247936,-150.0,0.00022772,2]
[334158447,1722802247947,-150.0,0.00022888,2]
[334158449,1722802247959,-253.48684489,0.000229,2]
[334158451,1722802247971,-394.55,0.00022901,2]
[334158453,1722802247982,-1500.0,0.00022901,2]
[334158455,1722802247993,-13021.190842,0.00022903,3]
[334158457,1722802248005,-332.1951,0.00022913,2]
[334158459,1722802248018,-1000.0,0.00022913,2]
[334158461,1722802248029,-331.66708543,0.00022913,4]
[334158463,1722802248040,-2587.08360604,0.00022913,2]
[334158465,1722802248052,-198.96306483,0.00022913,2]
[334158468,1722802248065,-150.0,0.0002292,2]
[334158470,1722802248076,-1500.0,0.00022935,2]
[334158472,1722802248088,-150.0,0.00022974,2]
[334158474,1722802248103,-150.0,0.00022975,2]
[334158477,1722802248117,-300.14737164,0.00022976,2]
[334158479,1722802248129,-150.0,0.00022986,2]
[334158481,1722802248142,-150.0,0.00022986,2]
[334158484,1722802248154,-150.0,0.00022986,4]
[334158486,1722802248166,-1358.30074811,0.0002299,3]
[334158488,1722802248181,-520.38152683,0.0002299,3]
[334158492,1722802248202,-292.84,0.0002299,3]
[334158494,1722802248218,-626.86484445,0.0002299,3]
[334158497,1722802248238,-8414.37793938,0.0002299,3]
[334158517,1722802248444,-155.0,0.00016999,2]
[334158519,1722802248454,-10496.83516986,0.0002299,3]
[334158522,1722802248472,-521.20184298,0.0002299,3]
[334158524,1722802248484,-1102.43613394,0.0002299,3]
[334158560,1722802400992,500.0,0.00027,120]
[334158563,1722802828704,-955.81065426,0.000105,2]
[334158564,1722802850516,2255.78089757,0.000105,2]
[334158565,1722802851365,263.95459009,0.000105,2]
[334158566,1722802859281,9324.71366136,0.000105,2]
[334158567,1722802859364,227.61995131,0.000105,2]
[334158568,1722802916670,882.69602258,0.000105,2]
[334158570,1722802924353,1049.78501246,0.000105,2]
[334158571,1722802999897,500.0,0.00027,120]
[334158612,1722803432013,-182.7281,0.0001079,2]
[334158615,1722803432023,-200.0,0.000109,3]
[334158617,1722803432033,-738.93601705,0.000109,2]
[334158621,1722803432045,-662.50488295,0.000109,2]
[334158623,1722803432054,-153.74,0.0001099,2]
[334158625,1722803432064,-3.03511705,0.00010997,2]
[334158626,1722803432084,-162.83032542,0.00010997,2]
[334158627,1722803432096,-300.0,0.00010998,2]
[334158628,1722803432106,-13054.42862262,0.00010999,2]
[334158629,1722803432117,-707.07731665,0.00010999,2]
[334158630,1722803432129,-629.99914214,0.00010999,2]
[334158631,1722803432140,-6925.93596727,0.00010999,2]
[334158632,1722803432152,-2046.06,0.00010999,2]
[334158633,1722803432163,-371.6925449,0.00010999,2]
[334158634,1722803432184,-2420.54156728,0.00010999,2]
[334158635,1722803432195,-11125.95091148,0.00011,2]
[334158636,1722803432207,-378.91306882,0.00011,2]
[334158637,1722803432218,-935.99632994,0.00011,2]
[334158638,1722803432230,-478.1956183,0.00011,2]
[334158639,1722803432249,-3201.4527715,0.00011,2]
[334158640,1722803432265,-337.835,0.00011,2]
[334158641,1722803432308,-595.5625,0.00011,2]
[334158642,1722803432319,-3921.29546248,0.00011,2]
[334158643,1722803432366,-6586.58,0.00011,2]
[334158644,1722803432378,-5149.76122802,0.00011,2]
[334158645,1722803432425,-1414.36815207,0.00011,2]
[334158648,1722803437987,-7440.2661436,0.00011,2]
[334158649,1722803438098,-2962.420924,0.00011,2]
[334158650,1722803438110,-5960.36951,0.00011,2]
[334158651,1722803438158,-300.45999998,0.00011,2]
[334158652,1722803438169,-2388.0077318,0.00011,2]
[334158653,1722803438192,-1275.15327242,0.00011,2]
[334158654,1722803438262,-65711.9951142,0.00011,2]
[334158827,1722803440814,-56764.57468367,0.00011,2]
[334158829,1722803440827,-102354.10108673,0.00011,2]
[334158832,1722803440839,-66753.04296025,0.00011,2]
[334158834,1722803440851,-24549.80075471,0.00011,2]
[334158839,1722803440897,-411898.4360026,0.00011,2]
[334158850,1722803441005,-1259.9016055,0.00011,2]
[334158857,1722803441075,-59721.20400001,0.00011,2]
[334159048,1722803443054,-65448.75971001,0.00011,2]
[334159202,1722803444930,-1568.87597196,0.00011,2]
[334159203,1722803444965,-1125.32653241,0.00011,2]
[334159204,1722803444997,-470.88506299,0.00011,2]
[334159205,1722803445009,-1072.62236,0.00011,2]
[334159210,1722803446206,-1707.88238777,0.00011,2]
[334159211,1722803446218,-827.87841086,0.00011,2]
[334159212,1722803446319,-1005.04406298,0.00011,2]
[334159213,1722803446331,-22609.66535657,0.00011,2]
[334159214,1722803446339,-222.59619376,0.00011086,2]
[334159215,1722803446349,-4103.05217891,0.00011105,2]
[334159216,1722803446358,-2839.13560359,0.00011105,2]
[334159217,1722803446368,-2500.85158559,0.0001236,2]
[334159218,1722803446378,-155.0,0.0001236,2]
[334159219,1722803446387,-501.74,0.0001254,2]
[334159220,1722803446397,-1597.37104682,0.00013079,2]
[334159221,1722803446407,-155.0,0.000134,2]
[334159222,1722803446417,-165.86544247,0.00013797,2]
[334159223,1722803446426,-48335.48042569,0.000138,2]
[334159224,1722803446442,-410.00625,0.000138,2]
[334159254,1722803600248,500.0,0.00027,120]
[334159257,1722803883107,182.0,0.00026273,120]
[334159259,1722804200908,500.0,0.00027,120]
[334159272,1722804632626,-300.0,0.00010799,2]
[334159273,1722804632635,-325.975,0.000108,2]
[334159274,1722804632646,-6599.90554356,0.000108,2]
[334159275,1722804632658,-3556.73,0.000108,2]
[334159276,1722804632669,-626.97236321,0.000108,2]
[334159277,1722804632700,-1800.61673734,0.000108,2]
[334159278,1722804632711,-1932.47255589,0.000108,2]
[334159279,1722804632720,-965.9951,0.000109,2]
[334159280,1722804632730,-550.0,0.00011,2]
[334159281,1722804632739,-155.0,0.00011105,2]
[334159282,1722804632749,-4790.79929498,0.00011186,2]
[334159283,1722804632758,-2839.13560359,0.00011384,2]
[334159284,1722804632767,-4103.05217891,0.00011959,2]
[334159285,1722804632776,-4103.05217891,0.00011959,2]
[334159286,1722804632786,-150.0,0.00012329,2]
[334159287,1722804632796,-2500.85158559,0.00012391,2]
[334159288,1722804632805,-600.0,0.00013,2]
[334159289,1722804632815,-318.57,0.00013,2]
[334159290,1722804632824,-150.0,0.00013198,2]
[334159291,1722804632834,-499.99,0.00013199,2]
[334159292,1722804632843,-4328.8,0.00013199,2]
[334159293,1722804632852,-153.18864,0.00013662,2]
[334159294,1722804632861,-4750.9552,0.000137,2]
[334159295,1722804632871,-11130.3814,0.000137,2]
[334159296,1722804632880,-290.4654,0.000138,2]
[334159297,1722804632890,-163.2,0.00013973,2]
[334159298,1722804632899,-176.03,0.00013973,2]
[334159299,1722804632908,-260.2,0.00013973,2]
[334159300,1722804632917,-150.57,0.00013973,2]
[334159301,1722804632927,-163.2,0.00013973,2]
[334159302,1722804632936,-537.01570494,0.00014,2]
[334159303,1722804632946,-370.84,0.00014585,2]
[334159304,1722804632956,-155.0,0.00014896,2]
[334159305,1722804632966,-818.0,0.00015,2]
[334159306,1722804632975,-2641.0,0.00015,2]
[334159308,1722804632984,-650.0,0.00015,2]
[334159309,1722804632993,-155.0,0.00016,2]
[334159310,1722804633002,-468.17,0.00016338,2]
[334159311,1722804633011,-250.0,0.00016411,2]
[334159312,1722804633021,-194.76,0.00016412,2]
[334159313,1722804633030,-200.0,0.00016432,2]
[334159315,1722804633039,-346.37,0.00016456,2]
[334159317,1722804633048,-250.0,0.00016533,2]
[334159318,1722804633059,-1975.42,0.00016552,2]
[334159320,1722804633068,-150.0,0.00016654,2]
[334159322,1722804633078,-400.0,0.00016687,2]
[334159324,1722804633087,-370.84,0.00016849,2]
[334159326,1722804633097,-156.79,0.00017329,2]
[334159327,1722804633106,-182.0,0.00017516,2]
[334159328,1722804633115,-1256.2300716,0.00018081,2]
[334159329,1722804633123,-400.0,0.00018773,2]
[334159330,1722804633132,-370.84,0.00019113,2]
[334159331,1722804633141,-10000.0,0.00019141,2]
[334159332,1722804633150,-211.54413421,0.0001924,2]
[334159333,1722804633160,-676.2827,0.00019667,2]
[334159334,1722804633169,-530.49366899,0.00020439,2]
[334159335,1722804633182,-260.2,0.00020447,2]
[334159336,1722804633192,-400.0,0.00020858,2]
[334159337,1722804633202,-947.92262883,0.00020999,2]
[334159338,1722804633211,-370.84,0.00021376,2]
[334159339,1722804633222,-167.92,0.00021589,30]
[334159340,1722804633232,-2500.0,0.0002167,2]
[334159341,1722804633241,-2088.4651,0.0002167,2]
[334159342,1722804633250,-1000.0,0.0002167,2]
[334159343,1722804633260,-1000.0,0.0002168,2]
[334159344,1722804633271,-7500.0,0.0002176,2]
[334159345,1722804633280,-3451.09813092,0.0002177,3]
[334159346,1722804633316,-670.2429723,0.0002177,3]
[334159347,1722804633327,-8610.4235858,0.0002177,3]
[334159348,1722804633339,-266.95294903,0.0002177,3]
[334159349,1722804633351,-11608.26298993,0.0002177,3]
[334159350,1722804633362,-885.5159298,0.0002177,3]
[334159351,1722804633374,-52304.34630512,0.0002177,3]
[334159352,1722804633384,-154.38,0.0002177,2]
[334159353,1722804633394,-10125.4941,0.0002177,2]
[334159354,1722804633403,-592.94,0.0002177,2]
[334159355,1722804633413,-10262.3997,0.0002177,2]
[334159356,1722804633423,-100000.0,0.0002177,2]
[334159357,1722804633432,-257.3821,0.0002177,2]
[334159358,1722804633442,-627.0822,0.0002177,2]
[334159359,1722804633452,-245000.0,0.0002178,2]
[334159360,1722804633461,-500.0,0.0002178,2]
[334159361,1722804633471,-23339.0528589,0.0002186,3]
[334159362,1722804633481,-1018.42089926,0.00021869,5]
[334159363,1722804633490,-50000.0,0.0002187,4]
[334159364,1722804633500,-7779.68428629,0.0002187,3]
[334159365,1722804633510,-13299.14796992,0.0002188,2]
[334159366,1722804633519,-839.9,0.00022137,2]
[334159367,1722804633529,-200.0,0.000224,8]
[334159368,1722804633539,-157.080505,0.00022448,4]
[334159369,1722804633548,-157.080505,0.00022448,3]
[334159370,1722804633557,-187.080505,0.00022448,3]
[334159371,1722804633567,-500.0,0.000225,8]
[334159372,1722804633576,-150.0,0.00022548,2]
[334159373,1722804633586,-530.48,0.00022548,2]
[334159374,1722804633596,-356.11,0.00022548,2]
[334159375,1722804633606,-321.71,0.00022548,2]
[334159376,1722804633616,-300.0,0.00022548,2]
[334159377,1722804633626,-851.6,0.00022548,2]
[334159378,1722804633636,-530.48,0.00022548,2]
[334159379,1722804633645,-150.0,0.00022548,2]
[334159380,1722804633655,-530.15,0.00022548,2]
[334159381,1722804633665,-150.0,0.00022548,2]
[334159382,1722804633675,-157.080505,0.00022548,2]
[334159383,1722804633685,-157.080505,0.00022548,2]
[334159384,1722804633695,-157.080505,0.00022548,2]
[334159385,1722804633709,-157.080505,0.00022548,2]
[334159386,1722804633721,-157.080505,0.00022548,3]
[334159387,1722804633730,-157.080505,0.00022548,3]
[334159388,1722804633740,-157.080505,0.00022548,3]
[334159389,1722804633750,-157.080505,0.00022548,3]
[334159390,1722804633759,-157.080505,0.00022548,4]
[334159391,1722804633769,-157.080505,0.00022548,4]
[334159392,1722804633779,-157.080505,0.00022548,4]
[334159393,1722804633789,-157.080505,0.00022548,4]
[334159394,1722804633799,-800.0,0.000226,8]
[334159395,1722804633809,-157.080505,0.00022648,4]
[334159396,1722804633820,-157.080505,0.00022648,4]
[334159397,1722804633830,-157.080505,0.00022648,4]
[334159398,1722804633840,-157.080505,0.00022648,4]
[334159399,1722804633850,-157.080505,0.00022648,3]
[334159400,1722804633860,-157.080505,0.00022648,3]
[334159401,1722804633870,-157.080505,0.00022648,3]
[334159402,1722804633880,-157.080505,0.00022648,3]
[334159403,1722804633890,-157.080505,0.00022648,2]
[334159404,1722804633900,-157.080505,0.00022648,2]
[334159405,1722804633910,-157.080505,0.00022648,2]
[334159406,1722804633920,-157.080505,0.00022648,2]
[334159407,1722804633930,-7779.68428629,0.0002269,3]
[334159408,1722804633939,-1000.0,0.000227,8]
[334159409,1722804633952,-157.080505,0.00022748,2]
[334159410,1722804633964,-157.080505,0.00022748,2]
[334159411,1722804633974,-157.080505,0.00022748,2]
[334159412,1722804633984,-157.080505,0.00022748,2]
[334159413,1722804633994,-157.080505,0.00022748,3]
[334159414,1722804634003,-157.080505,0.00022748,3]
[334159415,1722804634013,-157.080505,0.00022748,3]
[334159416,1722804634023,-157.080505,0.00022748,3]
[334159417,1722804634033,-157.080505,0.00022748,4]
[334159418,1722804634308,-157.080505,0.00022748,4]
[334159419,1722804634317,-157.080505,0.00022748,4]
[334159420,1722804634326,-157.080505,0.00022748,4]
[334159421,1722804634336,-6410.456413,0.000228,2]
[334159422,1722804634345,-1300.0,0.000228,8]
[334159423,1722804634354,-500.0,0.00022802,2]
[334159424,1722804634363,-7779.68428629,0.00022845,3]
[334159425,1722804634373,-157.080505,0.00022848,4]
[334159426,1722804634382,-157.080505,0.00022848,4]
[334159427,1722804634392,-157.080505,0.00022848,4]
[334159428,1722804634402,-157.080505,0.00022848,4]
[334159429,1722804634411,-157.080505,0.00022848,3]
[334159430,1722804634421,-157.080505,0.00022848,3]
[334159431,1722804634431,-157.080505,0.00022848,3]
[334159432,1722804634440,-157.080505,0.00022848,3]
[334159433,1722804634452,-157.080505,0.00022848,2]
[334159434,1722804634462,-157.080505,0.00022848,2]
[334159435,1722804634472,-157.080505,0.00022848,2]
[334159436,1722804634481,-157.080505,0.00022848,2]
[334159437,1722804634491,-7779.68428629,0.00022854,3]
[334159438,1722804634500,-565.76830521,0.00022868,2]
[334159439,1722804634509,-1000.0,0.00022871,2]
[334159440,1722804634519,-1000.0,0.00022871,2]
[334159441,1722804634528,-1000.0,0.00022871,2]
[334159442,1722804634537,-1000.0,0.00022871,2]
[334159443,1722804634546,-1000.0,0.00022871,2]
[334159444,1722804634556,-1000.0,0.00022871,2]
[334159445,1722804634565,-1000.0,0.00022871,2]
[334159446,1722804634575,-1000.0,0.00022871,2]
[334159447,1722804634584,-1000.0,0.00022871,2]
[334159448,1722804634594,-1000.0,0.00022871,2]
[334159449,1722804634603,-1000.0,0.00022871,2]
[334159450,1722804634613,-1000.0,0.00022871,2]
[334159451,1722804634622,-1000.0,0.00022871,2]
[334159452,1722804634632,-1000.0,0.00022871,2]
[334159453,1722804634641,-1000.0,0.00022871,2]
[334159454,1722804634651,-1000.0,0.00022871,2]
[334159455,1722804634660,-890.1597,0.00022871,2]
[334159456,1722804634669,-159.40595947,0.00022882,2]
[334159457,1722804634679,-221.1113903,0.00022883,4]
[334159458,1722804634689,-164.05090222,0.00022883,2]
[334159459,1722804634699,-3991.18446678,0.00022883,2]
[334159460,1722804634712,-305.20674348,0.00022887,2]
[334159461,1722804634722,-240.98971489,0.000229,2]
[334159462,1722804634731,-704.9754351,0.000229,2]
[334159463,1722804634741,-1839.58621458,0.000229,2]
[334159464,1722804634751,-200.0,0.000229,8]
[334159465,1722804634761,-7779.68428629,0.00022908,3]
[334159466,1722804634770,-5446.0823,0.00022913,2]
[334159467,1722804634780,-1000.0,0.00022913,2]
[334159468,1722804634789,-3335.13025966,0.00022918,10]
[334159469,1722804634799,-11822.7705091,0.00022928,3]
[334159470,1722804634808,-7779.68428629,0.00022938,3]
[334159471,1722804634817,-400.0,0.00022944,2]
[334159472,1722804634826,-7779.68428629,0.00022945,3]
[334159473,1722804634836,-11822.7705091,0.00022945,3]
[334159474,1722804634846,-157.080505,0.00022948,2]
[334159475,1722804634855,-157.080505,0.00022948,2]
[334159476,1722804634864,-157.080505,0.00022948,2]
[334159477,1722804634875,-157.080505,0.00022948,2]
[334159478,1722804634885,-157.080505,0.00022948,2]
[334159479,1722804634894,-157.080505,0.00022948,3]
[334159480,1722804634904,-157.080505,0.00022948,3]
[334159481,1722804634914,-157.080505,0.00022948,3]
[334159482,1722804634924,-157.080505,0.00022948,3]
[334159483,1722804634934,-157.080505,0.00022948,3]
[334159484,1722804634944,-157.080505,0.00022948,4]
[334159485,1722804634957,-157.080505,0.00022948,4]
[334159486,1722804634967,-157.080505,0.00022948,4]
[334159487,1722804634977,-157.080505,0.00022948,4]
[334159488,1722804634988,-157.080505,0.00022948,4]
[334159489,1722804634998,-23339.0528589,0.00022953,3]
[334159490,1722804635007,-23645.5410183,0.00022953,3]
[334159491,1722804635017,-7779.68428629,0.00022957,3]
[334159492,1722804635026,-7779.68428629,0.00022959,3]
[334159493,1722804635036,-11822.7705091,0.00022959,3]
[334159494,1722804635045,-7779.68428629,0.0002296,3]
[334159495,1722804635055,-11822.7705091,0.0002296,3]
[334159496,1722804635065,-197.542807,0.00022963,7]
[334159497,1722804635076,-151.0,0.00022963,7]
[334159498,1722804635085,-151.0,0.00022963,7]
[334159499,1722804635095,-46678.1057177,0.00022963,3]
[334159500,1722804635104,-47291.0820366,0.00022963,3]
[334159501,1722804635114,-11822.7705091,0.00022967,3]
[334159502,1722804635123,-151.0,0.00022967,7]
[334159503,1722804635133,-198.665796,0.00022967,7]
[334159504,1722804635142,-151.0,0.00022967,7]
[334159505,1722804635152,-151.0,0.00022967,7]
[334159506,1722804635162,-151.0,0.00022967,7]
[334159507,1722804635171,-151.0,0.00022967,7]
[334159508,1722804635183,-151.0,0.00022967,7]
[334159509,1722804635193,-151.0,0.00022967,7]
[334159510,1722804635204,-151.0,0.00022967,7]
[334159511,1722804635215,-151.0,0.00022967,7]
[334159512,1722804635225,-2005.528968,0.00022967,7]
[334159513,1722804635235,-151.0,0.00022967,7]
[334159514,1722804635244,-151.0,0.00022967,7]
[334159515,1722804635255,-299.1442,0.00022967,7]
[334159516,1722804635263,-238.325386,0.00022967,7]
[334159517,1722804635274,-151.0,0.00022967,7]
[334159518,1722804635283,-294.548988,0.00022967,7]
[334159519,1722804635292,-151.0,0.00022967,7]
[334159520,1722804635301,-151.0,0.00022967,7]
[334159521,1722804635311,-11822.7705091,0.00022969,3]
[334159522,1722804635320,-151.0,0.00022973,7]
[334159523,1722804635329,-151.0,0.00022973,7]
[334159524,1722804635338,-82759.393564,0.00022973,3]
[334159525,1722804635348,-11822.7705091,0.00022975,3]
[334159526,1722804635357,-151.0,0.00022975,7]
[334159527,1722804635367,-151.0,0.00022975,7]
[334159528,1722804635376,-23645.5410183,0.00022977,3]
[334159529,1722804635385,-271.115852,0.00022977,7]
[334159530,1722804635394,-151.0,0.00022977,7]
[334159531,1722804635403,-151.0,0.00022977,7]
[334159532,1722804635414,-151.0,0.00022977,7]
[334159533,1722804635423,-151.0,0.00022977,7]
[334159534,1722804635433,-151.0,0.00022977,7]
[334159535,1722804635442,-151.0,0.00022977,7]
[334159536,1722804635453,-151.0,0.00022977,7]
[334159537,1722804635463,-151.0,0.00022977,7]
[334159538,1722804635472,-151.0,0.00022977,7]
[334159539,1722804635481,-151.0,0.00022977,7]
[334159540,1722804635491,-157.080505,0.00022978,7]
[334159541,1722804635500,-157.080505,0.00022978,7]
[334159542,1722804635509,-151.080505,0.00022978,9]
[334159543,1722804635518,-151.080505,0.00022978,8]
[334159544,1722804635527,-152.080505,0.00022978,8]
[334159545,1722804635537,-151.0,0.00022979,7]
[334159546,1722804635545,-151.0,0.00022979,7]
[334159547,1722804635555,-151.0,0.00022979,7]
[334159548,1722804635564,-151.0,0.00022979,7]
[334159549,1722804635574,-151.0,0.00022979,7]
[334159550,1722804635583,-151.0,0.00022979,7]
[334159551,1722804635592,-151.0,0.00022979,7]
[334159552,1722804635601,-151.0,0.00022979,7]
[334159553,1722804635611,-2005.528968,0.00022979,7]
[334159554,1722804635620,-151.0,0.00022979,7]
[334159555,1722804635630,-151.0,0.00022979,7]
[334159556,1722804635639,-1095.0,0.0002298,2]
[334159557,1722804635649,-251.93703106,0.0002298,2]
[334159558,1722804635659,-151.0,0.00022983,7]
[334159559,1722804635668,-151.0,0.00022983,7]
[334159560,1722804635678,-151.0,0.00022983,7]
[334159561,1722804635687,-151.0,0.00022983,7]
[334159562,1722804635697,-151.0,0.00022983,7]
[334159563,1722804635708,-151.0,0.00022983,7]
[334159564,1722804635717,-151.0,0.00022983,7]
[334159565,1722804635726,-151.0,0.00022983,7]
[334159566,1722804635735,-239.0919,0.00022983,7]
[334159567,1722804635745,-151.0,0.00022983,7]
[334159568,1722804635754,-151.0,0.00022983,7]
[334159569,1722804635764,-151.0,0.00022983,7]
[334159570,1722804635773,-151.0,0.00022983,7]
[334159571,1722804635782,-151.0,0.00022983,7]
[334159572,1722804635791,-5095.8053747,0.00022983,2]
[334159573,1722804635801,-16148.6419503,0.00022983,2]
[334159574,1722804635810,-4718.7839266,0.00022983,2]
[334159575,1722804635819,-151.0,0.00022983,7]
[334159576,1722804635828,-151.0,0.00022983,7]
[334159577,1722804635838,-151.0,0.00022983,7]
[334159578,1722804635847,-151.0,0.00022983,7]
[334159579,1722804635857,-151.0,0.00022983,7]
[334159580,1722804635866,-151.0,0.00022983,7]
[334159581,1722804635875,-16619.0350224,0.00022983,2]
[334159582,1722804635885,-2005.528968,0.00022983,7]
[334159583,1722804635894,-825.01451363,0.00022983,2]
[334159584,1722804635903,-151.0,0.00022983,7]
[334159585,1722804635913,-151.0,0.00022983,7]
[334159586,1722804635922,-151.0,0.00022983,7]
[334159587,1722804635931,-50035.2798122,0.00022983,2]
[334159588,1722804635941,-93500.1728058,0.00022983,2]
[334159589,1722804635950,-151.0,0.00022983,7]
[334159590,1722804635959,-253.185928,0.00022984,7]
[334159591,1722804635968,-5951.82189517,0.00022985,2]
[334159592,1722804635978,-150.01,0.00022985,2]
[334159593,1722804635988,-150.0,0.00022986,4]
[334159594,1722804635997,-150.0,0.00022986,4]
[334159595,1722804636006,-59113.8525457,0.00022987,3]
[334159596,1722804636016,-150.0,0.00022988,2]
[334159597,1722804636025,-150.0,0.00022988,2]
[334159598,1722804636035,-150.0,0.00022989,2]
[334159599,1722804636044,-151.0,0.0002299,7]
[334159600,1722804636054,-195.831385,0.0002299,7]
[334159601,1722804636063,-151.0,0.0002299,7]
[334159602,1722804636072,-154.38,0.0002299,2]
[334159603,1722804636081,-150.0,0.00022994,2]
[334159604,1722804636090,-151.0,0.00022997,7]
[334159605,1722804636101,-151.0,0.00022997,7]
[334159606,1722804636110,-256.542238,0.00022997,7]
[334159607,1722804636120,-151.0,0.00022997,7]
[334159608,1722804636128,-151.0,0.00022997,7]
[334159609,1722804636137,-151.0,0.00022997,7]
[334159610,1722804636147,-151.0,0.00022997,7]
[334159611,1722804636156,-182.64,0.00022997,7]
[334159612,1722804636168,-151.0,0.00022997,7]
[334159613,1722804636178,-4442.9659259,0.00022997,2]
[334159614,1722804636187,-14079.7892894,0.00022997,2]
[334159615,1722804636196,-4114.2458662,0.00022997,2]
[334159616,1722804636211,-151.0,0.00022997,7]
[334159617,1722804636220,-151.0,0.00022997,7]
[334159618,1722804636230,-151.0,0.00022997,7]
[334159619,1722804636240,-151.0,0.00022997,7]
[334159620,1722804636252,-151.0,0.00022997,7]
[334159621,1722804636262,-14489.9188444,0.00022997,2]
[334159622,1722804636272,-2005.528968,0.00022997,7]
[334159623,1722804636281,-151.0,0.00022997,7]
[334159624,1722804636291,-151.0,0.00022997,7]
[334159625,1722804636302,-184.68247,0.00022997,7]
[334159626,1722804636312,-43740.740087,0.00022997,2]
[334159627,1722804636321,-81737.6613489,0.00022997,2]
[334159628,1722804636331,-151.0,0.00022997,7]
[334159629,1722804636341,-4526.14644168,0.00022997,2]
[334159630,1722804636350,-150.0,0.00022999,2]
[334159631,1722804636359,-2005.528968,0.00022999,7]
[334159632,1722804636368,-151.0,0.00022999,7]
[334159633,1722804636377,-151.0,0.00022999,7]
[334159634,1722804636387,-429.69327457,0.00023,2]
[334159635,1722804636409,-3175.0000005,0.00023,2]
[334159636,1722804636420,-2955.0,0.00023,2]
[334159637,1722804636432,-643.11550861,0.00023,2]
[334159638,1722804636444,-2280.57713759,0.00023,2]
[334159639,1722804636461,-968.08911481,0.00023,2]
[334159642,1722804638155,-155.0,0.00014896,2]
[334159643,1722804638166,-5516.00093188,0.00019141,2]
[334159644,1722804638177,-11465.45,0.00021906,2]
[334159645,1722804638187,-151.0,0.00022963,7]
[334159646,1722804638196,-151.0,0.00022975,7]
[334159647,1722804638207,-151.0,0.00022983,7]
[334159648,1722804638217,-151.0,0.00022997,7]
[334159649,1722804638227,-159259.54906813,0.00023,11]
[334159650,1722804638243,-305978.83877592,0.00023,11]
[334159651,1722804638256,-40400.13462074,0.00023,2]
[334159652,1722804638268,-327.40327015,0.00023,2]
[334159653,1722804638279,-2180.5836,0.00023,2]
[334159655,1722804638515,-300.0,0.00023,2]
[334159656,1722804639052,-302.6099945,0.00023,2]
[334159657,1722804639065,-943.36963696,0.00023,2]
[334159658,1722804639079,-3545.96270676,0.00023,2]
[334159661,1722804639532,-4555.45780027,0.00023,2]
[334159663,1722804639545,-313.999999,0.00023,2]
[334159666,1722804639559,-5255.92241343,0.00023,2]
[334159668,1722804639572,-121926.43659211,0.00023,2]
[334159670,1722804639582,-2873.56340789,0.00023,5]
[334159672,1722804639596,-1500.90477222,0.00023,5]
[334159675,1722804639609,-366.68716363,0.00023,5]
[334159677,1722804639621,-1291.06,0.00023,5]
[334159751,1722804640363,-150.01,0.00022985,2]
[334159753,1722804640373,-5951.82189517,0.00022985,2]
[334159755,1722804640383,-124592.7173772,0.00023,5]
[334159757,1722804640395,-33421.65168054,0.00023,5]
[334159759,1722804640406,-2843.51779656,0.00023,5]
[334159761,1722804640418,-253.44497898,0.00023,5]
[334159763,1722804640430,-345.91147168,0.00023,5]
[334159766,1722804640447,-24929.11631104,0.00023,5]
[334159771,1722804640487,-3804.28083584,0.00023,5]
[334159781,1722804640576,-7231.66009916,0.00023,5]
[334159783,1722804640588,-327.02573169,0.00023,5]
[334159800,1722804640743,-517.04614379,0.00023,5]